bitfinex/quotes_ETHUSD_20260209
["timestamp","ask_amount","ask_price","bid_price","bid_amount"]
[1770620348899,11.82075578,2082.4,2081.7,2.18122137]
[1770620349310,11.82075578,2082.4,2081.7,0.98029878]
[1770620349593,11.82075578,2082.4,2081.7,2.18123212]
[1770620349793,9.704,2082.4,2081.8,0.97929878]
[1770620350023,6.35,2082.4,2081.8,0.97929878]
[1770620350627,1.20040922,2082.7,2082.0,0.97929878]
[1770620351101,2.11652402,2082.8,2082.1,1.20071082]
[1770620351428,0.91617312,2082.8,2082.1,2.1800096]
[1770620351737,0.91617312,2082.8,2082.1,0.97929878]
[1770620351738,2.11649854,2082.8,2082.1,0.97929878]
[1770620351916,3.356,2082.9,2082.2,1.02977712]
[1770620352099,4.55625336,2082.9,2082.2,1.02977712]
[1770620352936,5.47242648,2082.9,2082.2,1.02977712]
[1770620353455,4.55625336,2082.9,2082.3,0.97929878]
[1770620354822,5.47242648,2082.9,2082.2,2.23040489]
[1770620355128,5.47242648,2082.9,2082.3,0.94150231]
[1770620356759,5.47242648,2082.9,2082.2,2.19260842]
[1770620357044,5.47242648,2082.9,2081.5,0.001]
[1770620357045,0.76501282,2082.2,2081.5,0.001]
[1770620357216,8.30478267,2082.0,2081.5,0.001]
[1770620357417,3.355,2082.1,2081.5,0.001]
[1770620357745,3.355,2082.1,2081.6,0.9650819]
[1770620358844,4.55576457,2082.1,2081.6,0.9650819]
[1770620359931,4.55576457,2082.1,2081.7,0.001]
[1770620360136,3.355,2082.1,2081.7,0.9660819]
[1770620360647,1.2005768,2082.4,2081.7,0.9660819]
[1770620360950,4.8020706,2082.5,2081.8,0.9650819]
[1770620361325,1.20048019,2082.5,2081.8,0.9650819]
[1770620362248,0.002,2082.7,2082.0,0.9650819]
[1770620363053,0.002,2082.7,2082.1,2.16579272]
[1770620363545,0.002,2082.7,2082.2,0.9650819]
[1770620365641,0.002,2082.7,2082.3,0.9650819]
[1770620366759,0.002,2082.7,2082.1,2.16579108]
[1770620366965,0.002,2082.7,2082.2,0.9650819]
[1770620368154,0.002,2082.7,2082.3,0.9650819]
[1770620370178,0.002,2082.7,2082.4,0.9650819]
[1770620370561,0.002,2082.9,2082.5,1.01556024]
[1770620371599,0.002,2082.9,2082.5,2.21601724]
[1770620371824,0.002,2082.9,2082.5,0.9650819]
[1770620372160,0.002,2082.9,2082.5,2.16555967]
[1770620372563,0.002,2082.9,2082.5,0.9650819]
[1770620373405,0.002,2082.9,2082.5,2.16555492]
[1770620373605,0.002,2082.7,2082.5,0.9650819]
[1770620374499,0.002,2082.7,2082.6,0.9650819]
[1770620375481,0.002,2082.7,2082.4,2.16558582]
[1770620376180,0.002,2082.7,2082.5,0.9650819]
[1770620378810,0.002,2082.7,2082.3,0.9650819]
[1770620379509,0.002,2082.7,2082.3,2.16567672]
[1770620379713,0.002,2082.7,2082.1,2.16575111]
[1770620379915,0.002,2082.7,2082.2,2.16572989]
[1770620380626,0.002,2082.7,2082.3,0.9650819]
[1770620384401,0.002,2082.7,2082.4,0.9650819]
[1770620385330,0.002,2082.7,2082.5,0.9556854]
[1770620386130,0.002,2082.7,2082.5,0.9566854]
[1770620387906,0.002,2082.7,2082.5,0.001]
[1770620393119,0.002,2082.7,2082.5,0.9566854]
[1770620394514,0.002,2082.7,2082.5,1.00716374]
[1770620396646,0.002,2082.7,2082.6,0.9556854]
[1770620398836,0.002,2082.7,2082.5,0.001]
[1770620399040,0.002,2082.7,2082.5,0.9566854]
[1770620400452,9.0802088,2082.7,2082.1,2.15639243]
[1770620400948,8.31119598,2082.5,2081.9,2.15748387]
[1770620401119,8.31119598,2082.5,2082.0,0.9556854]
[1770620401316,8.31119598,2082.5,2081.9,0.001]
[1770620401317,8.31119598,2082.3,2081.9,0.001]
[1770620401526,0.76701282,2082.0,2081.6,0.001]
[1770620401729,8.31119598,2081.9,2081.6,0.001]
[1770620402117,9.51205159,2081.9,2081.6,0.001]
[1770620402918,0.76701282,2081.8,2081.3,0.001]
[1770620403130,1.96786843,2081.9,2081.3,0.001]
[1770620403531,1.20085561,2081.9,2081.3,0.9566854]
[1770620403935,4.80307492,2082.0,2081.3,0.9566854]
[1770620403936,1.20076849,2082.0,2081.3,0.9566854]
[1770620404262,0.76701282,2082.0,2081.3,0.9566854]
[1770620405166,0.76701282,2082.0,2081.3,0.001]
[1770620406466,0.76701282,2081.8,2081.3,0.001]
[1770620406761,1.20082616,2081.9,2081.3,0.001]
[1770620407145,1.96783898,2081.9,2081.3,0.001]
[1770620407341,4.80261262,2082.3,2081.6,0.9556854]
[1770620408560,0.76701282,2082.2,2081.3,0.9566854]
[1770620409867,0.76701282,2082.2,2081.3,0.001]
[1770620410844,1.96772364,2082.1,2081.3,0.9566854]
[1770620411050,1.20071082,2082.1,2081.3,0.9566854]
[1770620411456,1.20069703,2082.2,2081.6,0.9556854]
[1770620411871,3.356,2082.6,2081.6,0.9556854]
[1770620412044,0.002,2082.0,2081.6,0.9556854]
[1770620412772,3.356,2082.6,2081.9,0.9556854]
[1770620413067,0.002,2082.7,2082.1,1.00616374]
[1770620413570,1.20237554,2082.7,2082.1,1.00616374]
[1770620413747,1.20236901,2082.7,2082.1,1.00616374]
[1770620414451,0.002,2082.7,2082.1,1.00616374]
[1770620415070,0.002,2082.7,2082.2,2.15633855]
[1770620415285,0.002,2082.7,2082.2,0.9556854]
[1770620417176,0.002,2082.7,2082.2,2.15633284]
[1770620417587,0.002,2082.7,2082.3,0.9153144]
[1770620420783,0.002,2082.7,2082.1,1.25114451]
[1770620420984,0.002,2082.7,2082.1,2.21267376]
[1770620421655,0.002,2082.7,2081.9,2.16231448]
[1770620422065,0.76901282,2082.7,2081.9,0.96152925]
[1770620422363,0.76901282,2082.7,2081.9,2.16235052]
[1770620422994,0.76901282,2082.7,2081.9,0.96152925]
[1770620423292,1.96743536,2082.6,2081.7,0.96152925]
[1770620424489,0.76701282,2082.5,2081.5,0.001]
[1770620424692,0.76701282,2082.3,2081.5,0.001]
[1770620425390,1.96766597,2082.2,2081.5,0.001]
[1770620427059,1.96766597,2082.2,2081.5,0.96252925]
[1770620427060,1.20065315,2082.2,2081.5,0.96252925]
[1770620427261,4.80261262,2082.3,2081.5,0.96252925]
[1770620428171,5.56962544,2082.3,2081.5,0.96252925]
[1770620428378,0.76701282,2082.2,2081.5,0.001]
[1770620429700,1.20071082,2082.1,2081.5,0.001]
[1770620430403,1.96772364,2082.1,2081.5,0.001]
[1770620431569,0.76701282,2082.0,2081.5,0.001]
[1770620431774,1.96783898,2081.9,2081.5,0.001]
[1770620433486,1.20082616,2081.9,2081.5,0.001]
[1770620433880,4.80330467,2082.0,2081.5,0.001]
[1770620436474,1.20076849,2082.1,2081.5,0.96252925]
[1770620436908,1.20076849,2082.1,2081.7,0.001]
[1770620437396,1.20076849,2082.1,2081.7,0.701]
[1770620437606,1.20076849,2082.1,2081.7,0.001]
[1770620438513,4.80284328,2082.2,2081.7,0.001]
[1770620438796,1.20065315,2082.2,2081.7,0.96252925]
[1770620439000,7.55062278,2082.3,2081.7,0.96252925]
[1770620439421,6.35,2082.3,2081.7,0.96252925]
[1770620440598,0.002,2082.5,2082.1,0.96152925]
[1770620441981,1.2024865,2082.5,2082.1,0.96152925]
[1770620443084,0.002,2082.5,2082.1,0.96152925]
[1770620446406,0.002,2082.5,2082.1,1.20070464]
[1770620446711,0.002,2082.5,2082.2,0.91418728]
[1770620447913,0.002,2082.5,2082.0,0.91418728]
[1770620448786,0.76901282,2082.5,2081.7,0.001]
[1770620448986,0.002,2082.3,2081.7,2.11612853]
[1770620449205,0.002,2082.3,2081.7,0.91518728]
[1770620450097,0.002,2082.3,2081.9,0.91418728]
[1770620451080,0.002,2082.3,2081.5,4.85569881]
[1770620451081,0.76901282,2082.3,2081.5,0.001]
[1770620451282,0.76901282,2082.3,2081.3,0.001]
[1770620451694,1.96766597,2082.2,2081.3,0.91518728]
[1770620451894,3.356,2082.1,2081.3,0.91518728]
[1770620453313,0.76701282,2082.0,2081.1,0.91518728]
[1770620454308,1.96783898,2081.9,2081.1,0.91518728]
[1770620454512,1.96783898,2081.9,2081.1,0.001]
[1770620455122,0.76701282,2081.6,2080.9,0.001]
[1770620455320,0.76701282,2081.8,2080.9,0.91518728]
[1770620459717,1.20094153,2081.7,2080.9,0.91518728]
[1770620460105,7.55094153,2081.7,2080.9,0.91518728]
[1770620460621,0.76701282,2081.6,2081.1,0.001]
[1770620460828,0.76701282,2081.6,2080.9,0.001]
[1770620461000,0.76701282,2081.6,2080.8,0.001]
[1770620461206,4.12401282,2081.5,2080.8,0.001]
[1770620461403,0.76701282,2081.4,2080.7,0.001]
[1770620461603,0.76701282,2081.1,2080.2,0.91418728]
[1770620461834,1.2013455,2081.0,2080.2,0.91418728]
[1770620462027,3.357,2080.9,2080.2,0.91418728]
[1770620462430,3.357,2080.9,2080.2,2.11597843]
[1770620462629,3.357,2080.9,2080.3,0.91418728]
[1770620463013,1.2013455,2081.0,2080.3,0.91418728]
[1770620463217,4.5583455,2081.0,2080.3,0.91418728]
[1770620466041,5.32535832,2081.0,2080.1,2.11600665]
[1770620466335,5.32535832,2081.0,2080.2,0.91418728]
[1770620466336,4.5583455,2081.0,2080.2,0.91418728]
[1770620466538,1.20133946,2081.1,2080.2,0.91418728]
[1770620466834,1.20119915,2081.3,2080.5,0.91418728]
[1770620467739,1.96821197,2081.3,2080.5,0.91418728]
[1770620467914,1.96821197,2081.3,2080.7,0.7]
[1770620468111,1.96821197,2081.3,2080.7,0.6742422]
[1770620470115,0.76701282,2081.2,2080.0,2.1170753]
[1770620470339,0.76701282,2081.2,2080.1,0.91418728]
[1770620470634,0.76701282,2081.1,2080.1,2.11604373]
[1770620470810,0.76701282,2081.1,2080.2,0.91418728]
[1770620471505,1.96835832,2081.0,2080.2,0.91418728]
[1770620472236,1.2013455,2081.0,2080.2,0.91418728]
[1770620472816,1.2013455,2081.0,2080.5,0.001]
[1770620473022,1.2013455,2081.0,2080.2,0.91418728]
[1770620473223,1.2013455,2081.0,2080.3,0.001]
[1770620473410,4.80738202,2081.1,2080.3,0.001]
[1770620473611,5.57439484,2081.1,2080.3,0.001]
[1770620475236,0.76701282,2081.0,2080.3,0.001]
[1770620475438,1.20157646,2080.6,2080.0,0.001]
[1770620475630,3.358,2080.5,2079.8,0.93850938]
[1770620476715,4.12501282,2080.5,2079.6,0.93850938]
[1770620477247,4.12501282,2080.5,2079.6,2.14066111]
[1770620477442,1.20169198,2080.4,2079.6,0.93850938]
[1770620477946,1.20169198,2080.4,2079.6,2.14065091]
[1770620478311,1.9687048,2080.4,2079.6,2.14065847]
[1770620478716,1.9687048,2080.4,2079.6,0.93850938]
[1770620478918,0.94953078,2080.3,2079.4,1.20323977]
[1770620479143,0.94953078,2080.3,2079.4,1.20323716]
[1770620479517,2.15133829,2080.2,2079.4,1.2032254]
[1770620480047,2.15133829,2080.2,2079.4,2.12021128]
[1770620480244,0.94953078,2080.1,2079.4,0.001]
[1770620480621,1.20180751,2080.2,2079.4,0.91798588]
[1770620480944,0.94953078,2080.1,2079.4,0.001]
[1770620481152,0.94953078,2080.1,2079.1,1.20241852]
[1770620481153,0.94953078,2080.0,2079.1,1.20241852]
[1770620481353,0.94953078,2079.8,2079.0,0.91698588]
[1770620481558,2.15162723,2079.7,2078.8,2.11956443]
[1770620482154,2.15162723,2079.7,2078.9,0.91698588]
[1770620482626,1.20209645,2079.7,2078.9,0.91698588]
[1770620482824,4.56002566,2079.9,2078.9,0.96746422]
[1770620483024,5.50955644,2079.9,2078.9,0.91698588]
[1770620483337,0.94953078,2079.8,2078.9,0.91698588]
[1770620484045,1.20209645,2079.7,2078.9,2.11954447]
[1770620484224,1.20209645,2079.7,2078.7,0.91698588]
[1770620484225,0.94953078,2079.6,2078.7,0.91698588]
[1770620484546,0.94953078,2079.6,2078.6,1.20270753]
[1770620485241,0.94953078,2079.6,2078.5,0.91698588]
[1770620485427,0.94953078,2079.6,2078.5,2.11974742]
[1770620485628,0.94953078,2079.6,2078.8,0.001]
[1770620486130,0.94953078,2079.4,2078.5,2.11974742]
[1770620486327,4.30853078,2079.3,2078.5,2.12074742]
[1770620486543,3.359,2079.3,2078.6,0.91698588]
[1770620488034,3.359,2079.3,2078.7,1.20267474]
[1770620488343,4.56133368,2079.3,2078.7,1.20267474]
[1770620488733,3.359,2079.3,2078.7,1.20267474]
[1770620489150,4.56133674,2079.3,2078.6,1.20272717]
[1770620489452,3.359,2079.3,2078.7,0.91698588]
[1770620490237,4.56132965,2079.3,2078.7,2.11961541]
[1770620490441,3.359,2079.3,2078.7,2.11961541]
[1770620490642,3.359,2079.3,2078.8,0.91698588]
[1770620492036,1.20229632,2079.4,2078.8,0.91698588]
[1770620492351,4.80892925,2079.5,2078.8,0.91698588]
[1770620492722,4.80892925,2079.5,2078.8,2.11959835]
[1770620493229,4.80892925,2079.5,2078.8,0.91698588]
[1770620493554,4.80892925,2079.5,2078.5,1.20375355]
[1770620493555,0.94953078,2079.4,2078.5,1.20375355]
[1770620493929,0.94953078,2079.4,2078.5,0.001]
[1770620494125,0.94953078,2079.3,2078.2,0.91698588]
[1770620494425,0.94953078,2079.1,2078.2,1.20291948]
[1770620494627,0.94953078,2079.1,2078.2,1.20295779]
[1770620494852,0.94953078,2079.1,2078.1,1.2029763]
[1770620495780,0.94953078,2079.1,2077.7,0.001]
[1770620495781,0.94953078,2078.9,2077.7,2.12123771]
[1770620495928,0.94953078,2078.9,2077.8,2.12017955]
[1770620496255,0.94953078,2078.9,2077.7,0.001]
[1770620496256,0.94953078,2078.7,2077.7,0.001]
[1770620497661,1.20261689,2078.8,2077.7,0.91798588]
[1770620498147,1.20261689,2078.8,2077.9,0.91798588]
[1770620498345,1.20261689,2078.8,2077.7,0.001]
[1770620498346,0.94953078,2078.5,2077.7,0.001]
[1770620498558,4.30953078,2078.5,2077.7,0.001]
[1770620500182,1.20271373,2078.7,2077.7,0.91798588]
[1770620500391,8.17169899,2078.8,2077.9,0.91698588]
[1770620500549,9.12122977,2078.8,2077.9,0.91698588]
[1770620501177,1.27752259,2078.7,2077.9,0.91698588]
[1770620501378,0.32579262,2078.6,2077.9,0.91698588]
[1770620501647,0.32579262,2078.6,2077.7,0.001]
[1770620501648,0.94953078,2078.5,2077.7,0.001]
[1770620501860,0.94953078,2078.5,2077.4,0.91698588]
[1770620502069,0.94953078,2078.5,2077.5,1.20332608]
[1770620502447,0.94953078,2078.3,2077.5,1.20332608]
[1770620503067,1.20284834,2078.4,2077.5,2.12031196]
[1770620503375,0.94953078,2078.3,2077.4,2.12041174]
[1770620504550,1.20294071,2078.3,2077.5,0.91698588]
[1770620506675,1.30519047,2078.5,2077.7,0.94646571]
[1770620507275,1.52854675,2078.6,2077.7,0.94646571]
[1770620508657,1.52854675,2078.6,2077.8,2.14966139]
[1770620509772,0.32579262,2078.6,2077.9,0.94646571]
[1770620509973,0.32579262,2078.6,2077.9,0.94746571]
[1770620510793,1.52852569,2078.6,2078.0,1.20307988]
[1770620511479,2.43328179,2078.6,2077.9,0.001]
[1770620511670,2.43328179,2078.6,2077.9,1.20413016]
[1770620511866,2.43328179,2078.6,2077.9,0.001]
[1770620512176,0.9047561,2078.5,2077.7,1.20321299]
[1770620512476,0.9047561,2078.5,2077.6,1.20427567]
[1770620512682,0.9047561,2078.5,2077.6,0.001]
[1770620512853,0.9047561,2078.3,2077.6,0.001]
[1770620515184,1.2029641,2078.2,2077.6,0.001]
[1770620516079,0.9047561,2078.1,2077.6,0.001]
[1770620516387,1.2029641,2078.2,2077.6,0.001]
[1770620516684,0.9047561,2078.1,2077.6,0.001]
[1770620517382,1.20307988,2078.0,2077.3,2.14991376]
[1770620517569,1.20307988,2078.0,2077.3,0.94646571]
[1770620517759,2.10783598,2078.0,2077.2,1.20354245]
[1770620518081,10.02011931,2077.7,2077.0,1.20365259]
[1770620518276,0.9047561,2077.8,2076.9,2.15013025]
[1770620518779,0.9047561,2077.8,2076.9,0.94646571]
[1770620518979,0.9047561,2077.8,2076.9,2.15017912]
[1770620519182,0.9047561,2077.8,2076.9,0.94646571]
[1770620519361,1.20325359,2077.7,2077.0,1.20361794]
[1770620520087,1.20325359,2077.7,2076.9,2.15013873]
[1770620520465,13.38211931,2078.1,2077.0,0.94646571]
[1770620520466,1.20307988,2078.0,2077.0,0.94646571]
[1770620520662,5.46981421,2078.1,2076.9,1.20367302]
[1770620520866,0.9047561,2078.0,2076.9,1.20367302]
[1770620521170,0.9047561,2078.0,2077.0,0.94646571]
[1770620521370,4.56505811,2078.1,2077.2,0.94646571]
[1770620522167,0.9047561,2078.0,2077.1,1.20360117]
[1770620522775,0.9047561,2078.0,2077.0,2.15008885]
[1770620523187,1.0071561,2077.7,2077.3,0.001]
[1770620523389,1.20336943,2077.5,2076.6,0.94646571]
[1770620523560,1.20336943,2077.5,2077.0,0.001]
[1770620523760,1.20336943,2077.5,2076.7,1.203833]
[1770620524669,4.81250756,2078.0,2076.8,0.94646571]
[1770620524881,0.1024,2077.9,2076.8,0.94646571]
[1770620525392,4.81250756,2078.0,2077.0,0.94646571]
[1770620526396,1.20307988,2078.0,2077.0,0.94646571]
[1770620526567,0.9047561,2077.9,2077.0,0.94646571]
[1770620526774,0.9047561,2077.9,2076.9,1.20371707]
[1770620527183,0.9047561,2077.9,2076.8,2.15019562]
[1770620527685,1.20319568,2077.8,2076.8,2.15019562]
[1770620528062,4.81248962,2078.0,2076.9,0.94646571]
[1770620528264,1.20307988,2078.0,2076.9,0.94646571]
[1770620529871,1.20307988,2078.0,2077.1,0.94646571]
[1770620531894,0.002,2078.4,2077.6,0.94646571]
[1770620532898,0.002,2078.4,2077.8,0.94646571]
[1770620533671,0.32779262,2078.6,2077.8,0.94646571]
[1770620533881,0.32779262,2078.6,2078.0,0.94646571]
[1770620535875,0.32779262,2078.6,2078.1,1.20302199]
[1770620536202,0.32779262,2078.6,2078.1,2.15389662]
[1770620536400,0.32779262,2078.6,2078.3,0.7]
[1770620536969,0.002,2078.4,2078.3,0.7]
[1770620537801,0.002,2078.4,2078.3,1.60149326]
[1770620538102,0.002,2078.9,2078.5,0.90149326]
[1770620538818,0.002,2078.9,2078.3,2.80439948]
[1770620539237,0.002,2078.9,2078.4,0.90149326]
[1770620539917,0.002,2078.9,2078.5,1.20279047]
[1770620540103,0.002,2078.9,2078.3,1.90287595]
[1770620540322,0.002,2078.9,2078.3,1.20287595]
[1770620540478,0.002,2078.9,2078.4,1.20284784]
[1770620542616,0.002,2078.9,2078.2,1.2029641]
[1770620542781,0.002,2078.9,2078.2,2.10445736]
[1770620543514,0.002,2078.9,2078.3,0.90149326]
[1770620545086,0.002,2078.9,2078.4,2.1043416]
[1770620545900,0.002,2078.9,2078.5,0.90149326]
[1770620547111,0.002,2078.9,2078.7,0.7]
[1770620547315,0.002,2078.9,2078.7,1.90264768]
[1770620547684,0.002,2078.9,2078.7,1.90266777]
[1770620548002,0.002,2078.9,2078.7,0.7]
[1770620548899,0.002,2078.9,2078.6,1.20272282]
[1770620549101,0.002,2078.9,2078.5,1.20274744]
[1770620549604,0.002,2078.9,2078.5,0.001]
[1770620549811,0.002,2078.7,2078.5,0.001]
[1770620550307,0.002,2078.7,2078.5,0.90249326]
[1770620551511,0.002,2078.7,2078.6,1.2027326]
[1770620555114,0.002,2078.7,2078.5,0.001]
[1770620562418,0.002,2078.7,2078.3,0.001]
[1770620563216,0.002,2078.5,2078.3,0.001]
[1770620564010,0.002,2078.5,2078.4,0.7]
[1770620564519,0.002,2078.5,2078.4,1.90284834]
[1770620565311,0.002,2078.5,2078.1,1.20299836]
[1770620567086,0.002,2078.5,2077.9,4.81246543]
[1770620567691,0.91135942,2078.5,2077.8,2.15731677]
[1770620567915,0.91135942,2078.5,2077.8,2.15734066]
[1770620568419,0.002,2078.5,2077.9,0.95414751]
[1770620569092,0.002,2078.5,2078.1,0.95414751]
[1770620569801,0.002,2078.5,2078.0,1.20307988]
[1770620571625,0.91135942,2078.5,2077.8,1.2031823]
[1770620572889,8.3494402,2078.4,2077.8,1.2031823]
[1770620574225,9.55230982,2078.4,2077.8,1.2031823]
[1770620574902,1.20286962,2078.4,2077.7,2.15736578]
[1770620575098,0.90935942,2078.3,2077.4,0.001]
[1770620575721,0.90935942,2078.3,2077.4,1.20442563]
[1770620576004,0.90935942,2078.3,2077.4,0.001]
[1770620576203,0.90935942,2078.1,2078.0,0.001]
[1770620576510,0.90935942,2078.1,2077.4,0.001]
[1770620576717,0.90935942,2078.1,2077.8,0.001]
[1770620578507,1.2029641,2078.2,2077.8,0.001]
[1770620579126,0.90935942,2078.1,2077.4,0.001]
[1770620582237,0.002,2078.3,2077.4,0.95514751]
[1770620582404,1.20492201,2078.3,2077.4,0.95514751]
[1770620582611,0.90935942,2078.2,2077.4,0.001]
[1770620583436,0.1024,2078.1,2077.4,0.001]
[1770620583644,0.90935942,2078.0,2077.4,0.001]
[1770620584509,0.90935942,2077.8,2077.4,0.001]
[1770620587534,1.20316645,2077.9,2077.4,0.001]
[1770620587730,1.20311415,2078.0,2077.4,0.001]
[1770620588031,1.20311415,2078.0,2077.4,0.95514751]
[1770620588230,1.20311415,2078.0,2077.4,0.001]
[1770620589134,1.20311415,2078.0,2077.6,0.001]
[1770620589332,2.11247357,2078.0,2077.6,0.001]
[1770620590135,0.90935942,2077.9,2076.9,0.95414751]
[1770620590437,0.90935942,2077.9,2077.2,1.20353229]
[1770620591838,1.20319568,2077.8,2077.2,1.20353229]
[1770620592547,0.002,2078.3,2077.6,0.95414751]
[1770620593850,0.002,2078.5,2077.9,0.95414751]
[1770620596265,0.002,2078.5,2078.0,1.20307988]
[1770620598642,0.002,2078.5,2078.0,0.99687891]
[1770620600617,0.002,2078.5,2078.1,1.20302199]
[1770620602653,0.002,2078.5,2078.2,0.99687891]
[1770620604756,0.002,2078.5,2078.3,1.20290622]
[1770620605156,0.002,2078.5,2078.3,2.19978513]
[1770620607439,0.002,2078.7,2078.4,0.99687891]
[1770620609862,0.002,2078.7,2078.3,0.001]
[1770620610061,0.002,2078.7,2078.4,1.20284549]
[1770620610362,0.002,2078.7,2078.3,1.2038661]
[1770620610872,0.002,2078.7,2078.4,1.20284605]
[1770620612390,0.002,2078.7,2078.3,0.001]
[1770620616084,0.94833614,2078.7,2078.3,0.001]
[1770620617168,0.002,2078.7,2078.3,0.001]
[1770620617976,0.002,2078.7,2078.3,0.99787891]
[1770620618898,0.002,2078.7,2078.4,1.20284834]
[1770620619073,0.002,2078.7,2078.4,2.19972725]
[1770620619473,0.002,2078.5,2078.4,2.19972725]
[1770620622002,0.002,2078.5,2078.4,1.20284834]
[1770620623808,0.002,2078.5,2078.3,1.20390622]
[1770620626106,0.002,2078.5,2078.3,0.92350792]
[1770620626700,0.002,2078.5,2078.3,0.001]
[1770620629374,0.002,2078.5,2078.1,0.92250792]
[1770620630929,0.002,2078.5,2078.2,1.2029641]
[1770620631298,0.002,2078.5,2078.0,0.001]
[1770620631499,0.96401562,2078.5,2078.0,1.2040503]
[1770620631808,0.96401562,2078.5,2078.1,1.20301406]
[1770620632010,0.96401562,2078.5,2078.3,0.001]
[1770620632306,0.96401562,2078.5,2078.1,1.20301406]
[1770620633909,0.96401562,2078.5,2077.9,1.20313778]
[1770620634290,0.002,2078.5,2078.0,0.92250792]
[1770620636180,0.002,2078.5,2078.0,1.20303342]
[1770620636385,0.96401562,2078.5,2078.0,1.20303342]
[1770620640822,0.002,2078.5,2077.9,5.73497168]
[1770620640993,0.96401562,2078.5,2077.9,1.20313778]
[1770620641524,0.96401562,2078.5,2077.8,1.20315846]
[1770620642301,0.96401562,2078.5,2077.7,4.56520936]
[1770620642505,0.96401562,2078.5,2077.8,1.20319353]
[1770620642915,0.002,2078.5,2077.9,0.92250792]
[1770620643907,0.002,2078.5,2077.9,0.92350792]
[1770620644417,0.002,2078.3,2077.9,0.92350792]
[1770620646196,0.002,2078.3,2078.0,1.20307988]
[1770620646392,0.002,2078.3,2078.1,0.92250792]
[1770620648244,0.002,2078.3,2078.2,1.2029641]
[1770620648439,0.002,2078.3,2078.1,2.12548833]
[1770620648726,0.002,2078.3,2078.1,1.20298041]
[1770620649529,0.002,2078.3,2078.1,1.14298041]
[1770620650638,0.002,2078.3,2078.2,0.7]
[1770620665951,0.002,2079.4,2078.5,0.99253456]
[1770620666140,0.004,2079.3,2078.9,0.94205622]
[1770620666518,0.004,2079.2,2078.9,0.94205622]
[1770620666720,0.004,2079.3,2078.9,0.94205622]
[1770620667132,0.004,2079.2,2078.9,0.94205622]
[1770620667447,0.002,2079.4,2079.1,0.94205622]
[1770620668114,0.002,2079.8,2079.2,0.94205622]
[1770620668431,0.002,2079.8,2079.3,0.94205622]
[1770620669441,0.002,2079.8,2079.4,1.20226988]
[1770620669819,0.002,2079.8,2079.4,2.1443261]
[1770620670745,0.002,2079.8,2079.4,1.20226988]
[1770620670951,8.34599443,2079.6,2079.2,1.20238107]
[1770620671344,0.95640898,2079.7,2079.2,1.20238107]
[1770620671551,0.002,2079.6,2079.0,4.80996531]
[1770620673031,0.002,2079.6,2079.1,0.94205622]
[1770620673232,0.002,2079.6,2079.0,4.80996531]
[1770620673956,0.002,2079.6,2079.0,5.75202153]
[1770620675646,0.002,2079.6,2079.0,2.14455742]
[1770620675985,0.002,2079.6,2078.7,8.17161402]
[1770620675986,0.95840898,2079.6,2078.7,8.17161402]
[1770620676252,0.95840898,2079.6,2078.9,1.20255846]
[1770620676546,0.95840898,2079.6,2079.1,0.7]
[1770620678055,1.2041936,2079.6,2079.1,0.7]
[1770620678237,0.95640898,2079.5,2079.1,0.7]
[1770620678628,0.002,2079.6,2079.1,1.9024377]
[1770620679056,0.002,2079.6,2079.1,2.84449392]
[1770620681979,0.002,2079.6,2079.2,0.94205622]
[1770620682260,0.002,2079.6,2079.3,1.2023277]
[1770620684852,0.002,2079.4,2079.3,1.2023277]
[1770620695175,0.002,2079.4,2079.2,4.80939496]
[1770620696291,0.96135959,2079.2,2078.9,0.001]
[1770620696463,9.29839684,2079.1,2078.7,1.20264482]
[1770620696661,9.29839684,2079.1,2078.6,0.20092026]
[1770620696859,0.96135959,2079.0,2078.6,0.001]
[1770620698666,8.33703725,2079.1,2078.6,0.001]
[1770620698975,2.16378924,2079.2,2078.6,0.001]
[1770620699367,0.96135959,2079.1,2078.6,0.001]
[1770620700079,0.96135959,2079.0,2078.6,0.001]
[1770620700286,0.96135959,2079.0,2078.4,0.001]
[1770620700460,0.96135959,2079.0,2078.5,0.19992026]
[1770620702152,0.96135959,2079.0,2078.4,0.001]
[1770620702376,0.96135959,2079.2,2078.5,0.19992026]
[1770620702577,8.51566634,2079.4,2078.5,1.12525516]
[1770620702779,8.51566634,2079.4,2078.7,0.9253349]
[1770620702780,0.002,2079.4,2078.7,0.9253349]
[1770620703671,0.002,2079.4,2078.8,0.9253349]
[1770620703978,0.002,2079.4,2078.8,1.12525516]
[1770620704184,0.002,2079.4,2078.9,1.20255904]
[1770620704684,0.002,2079.4,2078.9,2.12789394]
[1770620705874,0.002,2079.4,2078.9,1.20255904]
[1770620706062,0.002,2079.4,2079.0,0.19992026]
[1770620707084,0.002,2079.4,2078.8,4.81023618]
[1770620707382,0.002,2079.4,2078.9,0.19992026]
[1770620707886,0.002,2079.4,2079.0,0.19992026]
[1770620708083,0.002,2079.4,2078.9,0.19992026]
[1770620708494,0.002,2079.4,2079.0,0.19992026]
[1770620708785,0.002,2079.4,2078.9,1.12525516]
[1770620709188,0.002,2079.4,2079.0,0.19992026]
[1770620709568,0.002,2079.4,2079.1,0.19992026]
[1770620709781,0.002,2079.4,2078.9,0.9253349]
[1770620709782,0.002,2079.4,2079.0,0.19992026]
[1770620710161,0.002,2079.4,2079.1,0.19992026]
[1770620710361,0.002,2079.2,2079.0,0.19992026]
[1770620710762,0.002,2079.2,2079.1,1.40236362]
[1770620712473,0.002,2079.4,2079.1,2.32769852]
[1770620712672,0.002,2079.4,2079.2,0.19992026]
[1770620713480,0.002,2079.6,2079.1,2.12777826]
[1770620713685,0.002,2079.6,2079.2,0.19792026]
[1770620715095,0.002,2079.6,2079.3,0.19792026]
[1770620715296,0.002,2079.6,2079.2,0.19792026]
[1770620716896,0.002,2079.6,2079.3,1.2023277]
[1770620718675,0.002,2079.6,2079.4,0.19792026]
[1770620719091,0.002,2079.6,2079.5,1.20221207]
[1770620719291,0.002,2080.0,2079.5,2.36900312]
[1770620719592,0.002,2080.0,2079.6,0.19592026]
[1770620719768,0.002,2080.0,2079.7,0.7]